bitfinex/quotes_BTCUSD_20250417
["timestamp","ask_amount","ask_price","bid_price","bid_amount"]
[1744912981427,0.00209999,84981.0,84980.0,0.34]
[1744912981666,0.23644671,84981.0,84980.0,0.34]
[1744912981859,0.28544671,84981.0,84980.0,0.34]
[1744912982517,0.05009999,84981.0,84980.0,0.34]
[1744912982707,0.09609999,84981.0,84980.0,0.57534949]
[1744912983245,0.01176761,84979.0,84976.0,0.24712808]
[1744912983463,0.23536611,84974.0,84971.0,0.01176872]
[1744912983658,0.23536611,84974.0,84970.0,0.24714594]
[1744912983778,0.24713441,84974.0,84971.0,0.01176872]
[1744912983980,0.0477,84973.0,84971.0,0.01176872]
[1744912984177,0.0477,84973.0,84971.0,0.24714249]
[1744912984376,0.0477,84973.0,84972.0,0.23537165]
[1744912985233,0.0477,84973.0,84972.0,0.57537165]
[1744912986068,0.04779999,84981.0,84980.0,0.23534949]
[1744912989129,0.04779999,84981.0,84978.0,0.58712069]
[1744912989301,0.04779999,84981.0,84979.0,0.23535036]
[1744912991048,0.04779999,84981.0,84980.0,0.23534949]
[1744912994131,0.00109999,84981.0,84980.0,0.23534949]
[1744912998142,0.2353558,84978.0,84976.0,0.34]
[1744912998479,0.24711785,84980.0,84977.0,0.01176789]
[1744912999230,0.01286732,84981.0,84978.0,0.01176775]
[1744912999410,0.23535161,84980.0,84978.0,0.34]
[1744912999606,0.23535161,84980.0,84977.0,0.2471243]
[1744912999813,0.24821665,84981.0,84977.0,0.2471243]
[1744913000029,0.24821665,84981.0,84978.0,0.23535315]
[1744913000237,0.0001,84980.0,84978.0,0.23535315]
[1744913000635,0.23544983,84980.0,84978.0,0.23535315]
[1744913001133,0.23544983,84980.0,84977.0,0.24712545]
[1744913001351,0.0001,84980.0,84978.0,0.23535503]
[1744913001669,0.0001,84980.0,84979.0,0.23535226]
[1744913002552,0.0001,84980.0,84979.0,0.23528376]
[1744913004255,0.0001,84980.0,84979.0,0.23763707]
[1744913004578,0.0001,84980.0,84979.0,0.23863707]
[1744913005243,0.0001,84980.0,84979.0,0.69808498]
[1744913005463,0.0001,84980.0,84979.0,0.69573167]
[1744913018110,0.0001,84980.0,84979.0,0.71027252]
[1744913021345,0.0001,84980.0,84979.0,0.69573167]
[1744913021543,0.00109999,84980.0,84979.0,0.57628376]
[1744913021743,0.00209999,84980.0,84979.0,0.23635226]
[1744913021975,0.04939999,84980.0,84979.0,0.57635226]
[1744913028037,0.33354948,84980.0,84979.0,0.341]
[1744913028543,0.09819999,84980.0,84979.0,0.57635226]
[1744913028755,0.09819999,84980.0,84979.0,0.001]
[1744913029170,0.09819999,84980.0,84979.0,0.23635226]
[1744913031074,0.00209999,84980.0,84979.0,0.23635226]
[1744913031231,0.0001,84980.0,84979.0,0.35715335]
[1744913031435,0.0001,84980.0,84979.0,0.35480017]
[1744913032226,0.0001,84980.0,84979.0,0.69480017]
[1744913034672,0.00109999,84980.0,84979.0,0.69480017]
[1744913045039,0.00109999,84980.0,84979.0,0.69580017]
[1744913049981,0.0468,85003.0,85000.0,0.58705881]
[1744913049982,0.0451,85001.0,85000.0,0.58705881]
[1744913050204,0.0001,85006.0,85005.0,0.57528027]
[1744913051027,0.0001,85006.0,85005.0,0.58262411]
[1744913053904,0.0001,85006.0,85005.0,0.59135707]
[1744913054479,0.0485,85012.0,85011.0,0.57526367]
[1744913054680,0.000843,85014.0,85013.0,0.57525813]
[1744913055310,0.000843,85014.0,85013.0,0.58260197]
[1744913055624,0.000843,85014.0,85013.0,0.60569166]
[1744913056998,0.00088789,85014.0,85013.0,0.60569166]
[1744913057626,0.0008438,85015.0,85014.0,0.57525536]
[1744913057828,0.0496,85028.0,85027.0,0.5752194]
[1744913058043,0.0451,85032.0,85031.0,0.57520833]
[1744913058241,0.04514492,85032.0,85031.0,0.58255217]
[1744913059062,0.04614492,85032.0,85031.0,0.58255217]
[1744913059473,0.04614492,85032.0,85031.0,0.34734384]
[1744913059474,0.09454492,85032.0,85031.0,0.34734384]
[1744913059869,0.09454492,85032.0,85031.0,0.00734384]
[1744913060550,0.24696874,85031.0,85028.0,0.11027464]
[1744913060762,0.0494,85030.0,85027.0,0.235219]
[1744913061339,0.0499,85028.0,85026.0,0.23522136]
[1744913061610,0.0499,85028.0,85026.0,0.24385275]
[1744913061914,0.0499,85028.0,85026.0,0.00863139]
[1744913062117,0.2833194,85027.0,85026.0,0.00863139]
[1744913062270,0.2833194,85027.0,85022.0,0.14776]
[1744913062271,0.28073046,85023.0,85022.0,0.14776]
[1744913062475,0.0455,85023.0,85022.0,0.14776]
[1744913062685,0.0455,85023.0,85022.0,0.23523323]
[1744913063283,0.0455,85023.0,85022.0,0.58412983]
[1744913064114,0.0481,85027.0,85026.0,0.23522216]
[1744913064314,0.0481,85027.0,85026.0,0.57522216]
[1744913065048,0.0496,85029.0,85028.0,0.34]
[1744913065267,0.0496,85029.0,85028.0,0.57521663]
[1744913065995,0.00104492,85032.0,85031.0,0.57520833]
[1744913073160,0.00104492,85032.0,85031.0,0.58255007]
[1744913080095,0.00104492,85032.0,85031.0,0.70199798]
[1744913080751,0.00114492,85032.0,85031.0,0.70199798]
[1744913082184,0.000843,85041.0,85031.0,0.70199798]
[1744913082185,0.000843,85041.0,85040.0,0.57518344]
[1744913082505,0.000843,85041.0,85040.0,0.58252518]
[1744913085335,0.000943,85041.0,85040.0,0.58252518]
[1744913091320,0.000943,85041.0,85040.0,0.58352518]
[1744913092703,0.0001,85053.0,85052.0,0.23515026]
[1744913092930,0.0001,85053.0,85052.0,0.5775015]
[1744913093131,0.0001,85053.0,85052.0,0.57515026]
[1744913093333,0.0001,85053.0,85052.0,0.582492]
[1744913094325,0.0001,85053.0,85052.0,0.61484831]
[1744913095117,0.00014492,85053.0,85052.0,0.61484831]
[1744913101003,0.00014492,85053.0,85052.0,0.73429622]
[1744913101585,0.00014492,85053.0,85052.0,0.73529622]
[1744913105996,0.00014492,85053.0,85052.0,0.73629622]
[1744913106222,0.00014492,85053.0,85052.0,0.75083707]
[1744913106452,0.00014492,85053.0,85052.0,0.79673707]
[1744913107073,0.00149876,85069.0,85068.0,0.57510603]
[1744913107299,0.00050124,85069.0,85068.0,0.69455394]
[1744913107729,0.00050124,85069.0,85068.0,0.70189568]
[1744913108868,0.00060124,85069.0,85068.0,0.70189568]
[1744913114605,0.00060124,85069.0,85068.0,0.24244777]
[1744913114816,0.00060124,85069.0,85068.0,0.00734174]
[1744913115024,0.04660124,85069.0,85068.0,0.00734174]
[1744913116032,0.01175557,85066.0,85063.0,0.5751184]
[1744913116169,0.0583564,85069.0,85065.0,0.23511377]
[1744913116379,0.04660124,85069.0,85067.0,0.5751075]
[1744913116578,0.04660124,85069.0,85067.0,0.34]
[1744913118453,0.0117553,85068.0,85064.0,0.34]
[1744913118651,0.04660124,85069.0,85067.0,0.34]
[1744913119316,0.28170474,85069.0,85067.0,0.34]
[1744913119702,0.28064116,85069.0,85067.0,0.34]
[1744913119916,0.05729282,85069.0,85065.0,0.01175571]
[1744913120116,0.05729282,85069.0,85067.0,0.2351085]
[1744913120472,0.04553766,85069.0,85067.0,0.23510668]
[1744913120678,0.04553766,85069.0,85066.0,0.24686677]
[1744913120679,0.29239671,85069.0,85065.0,0.24686781]
[1744913120971,0.04553766,85069.0,85067.0,0.23510867]
[1744913121117,0.04553766,85069.0,85066.0,0.23510857]
[1744913121313,0.05729282,85069.0,85066.0,0.23510857]
[1744913121560,0.29239631,85069.0,85066.0,0.23511016]
[1744913121822,0.0117553,85068.0,85065.0,0.24686781]
[1744913122276,0.29239688,85069.0,85066.0,0.23510892]
[1744913124179,0.04553766,85069.0,85068.0,0.23510603]
[1744913124729,0.04553766,85069.0,85067.0,0.23510663]
[1744913125474,0.0004217,85071.0,85070.0,0.2351005]
[1744913125681,0.01217423,85088.0,85081.0,0.2350701]
[1744913125682,0.0462,85085.0,85081.0,0.2350701]
[1744913125893,0.0004217,85088.0,85081.0,0.2350701]
[1744913126126,0.00087082,85082.0,85081.0,0.2350701]
[1744913126331,0.00087082,85082.0,85081.0,0.23742052]
[1744913126533,0.00087082,85082.0,85081.0,0.24378722]
[1744913127550,0.00087082,85082.0,85081.0,0.36323513]
[1744913130031,0.00087082,85082.0,85081.0,0.24378722]
[1744913130885,0.00097082,85082.0,85081.0,0.24378722]
[1744913131419,0.00097082,85082.0,85081.0,0.25636302]
[1744913131666,0.00097082,85082.0,85081.0,0.25736302]
[1744913139687,0.00097082,85082.0,85081.0,0.71681093]
[1744913139889,0.0004215,85087.0,85081.0,0.71681093]
[1744913139890,0.0004215,85087.0,85086.0,0.23505629]
[1744913140096,0.00055621,85087.0,85086.0,0.24704563]
[1744913144584,0.00055621,85087.0,85086.0,0.70649354]
[1744913145258,0.00055621,85087.0,85086.0,0.58704563]
[1744913145462,0.00055621,85087.0,85086.0,0.70649354]
[1744913146062,0.0001,85100.0,85086.0,0.70649354]
[1744913146063,0.14600147,85104.0,85100.0,0.23501685]
[1744913146271,0.24675914,85104.0,85101.0,0.01196263]
[1744913146472,0.2467599,85103.0,85100.0,0.23501685]
[1744913146670,0.2467599,85103.0,85101.0,0.01196202]
[1744913146835,0.2467599,85103.0,85100.0,0.23501685]
[1744913147035,0.2467599,85103.0,85101.0,0.01196202]
[1744913147239,0.2467599,85103.0,85101.0,0.02114973]
[1744913147449,0.01175005,85106.0,85102.0,0.24697237]
[1744913147670,0.24675258,85106.0,85104.0,0.23500658]
[1744913147873,0.246754,85105.0,85100.0,0.01175088]
[1744913148276,0.246754,85105.0,85101.0,0.23501262]
[1744913148476,0.01175005,85106.0,85103.0,0.23500722]
[1744913148725,0.24675505,85105.0,85102.0,0.23501129]
[1744913148910,0.24675505,85105.0,85103.0,0.23500858]
[1744913149111,0.24675505,85105.0,85102.0,0.23501129]
[1744913149318,0.2350121,85102.0,85101.0,0.02119177]
[1744913149459,0.23500946,85103.0,85101.0,0.02119177]
[1744913149671,0.24675488,85105.0,85101.0,0.2350122]
[1744913149914,0.24675784,85104.0,85101.0,0.2350122]
[1744913150123,0.01175032,85104.0,85102.0,0.23501072]
[1744913151365,0.01175032,85104.0,85103.0,0.01196263]
[1744913151821,0.0487,85108.0,85107.0,0.23499829]
[1744913152026,0.0455,85113.0,85111.0,0.23498725]
[1744913152244,0.0455,85113.0,85112.0,0.23498449]
[1744913152445,0.01174867,85116.0,85112.0,0.24685344]
[1744913152622,0.24672278,85116.0,85113.0,0.23497929]
[1744913152966,0.24672501,85115.0,85114.0,0.01186164]
[1744913153472,0.2467313,85113.0,85110.0,0.23498823]
[1744913153675,0.2467359,85112.0,85109.0,0.23499277]
[1744913153836,0.2467359,85112.0,85107.0,0.23499626]
[1744913153837,0.2467359,85112.0,85108.0,0.23499525]
[1744913154033,0.2467359,85112.0,85109.0,0.23499259]
[1744913154235,0.0455,85105.0,85103.0,0.0099852]
[1744913154433,0.0455,85105.0,85103.0,0.24499452]
[1744913154855,0.01174963,85109.0,85103.0,0.0099852]
[1744913155059,0.24674537,85108.0,85105.0,0.23500214]
[1744913155259,0.01174963,85109.0,85103.0,0.0099852]
[1744913155465,0.23500136,85106.0,85104.0,0.23500436]
[1744913155665,0.01174991,85107.0,85105.0,0.23500381]
[1744913156117,0.24674988,85107.0,85104.0,0.23500436]
[1744913156302,0.24675267,85106.0,85103.0,0.24499396]
[1744913157000,0.01174991,85107.0,85104.0,0.23500433]
[1744913157404,0.24673197,85113.0,85108.0,0.01174977]
[1744913157709,0.01174936,85111.0,85108.0,0.23499369]
[1744913158295,0.0117495,85110.0,85108.0,0.23499413]
[1744913158668,0.0117495,85110.0,85107.0,0.23499829]
[1744913159304,0.24673738,85111.0,85108.0,0.23499496]
[1744913159615,0.0117495,85110.0,85107.0,0.23499829]
[1744913160446,0.01174922,85112.0,85109.0,0.23499236]
[1744913160651,0.01174936,85111.0,85108.0,0.23499011]
[1744913160864,0.24673381,85112.0,85108.0,0.23499011]
[1744913161091,0.01174922,85112.0,85109.0,0.23499261]
[1744913161480,0.01174936,85111.0,85108.0,0.23499011]
[1744913161707,0.01174936,85111.0,85108.0,0.23599011]
[1744913161823,0.24673707,85111.0,85108.0,0.23599011]
[1744913162851,0.01174936,85111.0,85108.0,0.001]
[1744913163057,0.23499277,85109.0,85108.0,0.001]
[1744913163186,0.01174936,85111.0,85108.0,0.001]
[1744913163387,0.23499021,85110.0,85108.0,0.001]
[1744913164802,0.23499277,85109.0,85108.0,0.001]
[1744913165235,0.23499021,85110.0,85108.0,0.001]
[1744913165798,0.23499277,85109.0,85108.0,0.001]
[1744913166565,0.23499277,85109.0,85108.0,0.01328478]
[1744913166766,0.23499277,85109.0,85108.0,0.001]
[1744913167050,0.23499277,85109.0,85108.0,0.01328463]
[1744913167255,0.23499277,85109.0,85108.0,0.001]
[1744913167396,0.23499277,85109.0,85108.0,0.01328463]
[1744913167597,0.23499277,85109.0,85108.0,0.001]
[1744913167849,0.23499277,85109.0,85108.0,0.01329411]
[1744913168376,0.06170469,85117.0,85108.0,0.02504388]
[1744913168609,0.24673662,85111.0,85108.0,0.01329411]
[1744913168808,0.23499085,85110.0,85108.0,0.01329411]
[1744913171181,0.01174936,85111.0,85109.0,0.23499207]
[1744913171400,0.23497636,85115.0,85112.0,0.23498253]
[1744913171611,0.24673099,85113.0,85111.0,0.23498456]
[1744913171877,0.01174894,85114.0,85111.0,0.23498456]
[1744913172116,0.01174894,85114.0,85112.0,0.23498289]
[1744913172371,0.24672578,85115.0,85112.0,0.23498289]
[1744913172806,0.24672215,85116.0,85113.0,0.23498067]
[1744913173120,0.01174881,85115.0,85110.0,0.23498807]
[1744913173499,0.01174908,85113.0,85110.0,0.23498834]
[1744913173700,0.24673044,85114.0,85111.0,0.23498602]
[1744913173902,0.01174908,85113.0,85111.0,0.23498655]
[1744913174283,0.01174881,85115.0,85111.0,0.23498655]
[1744913175222,0.01174881,85115.0,85113.0,0.23498074]
[1744913175808,0.24672362,85116.0,85113.0,0.23498074]
[1744913176003,0.04995616,85117.0,85116.0,0.23497344]
[1744913176325,0.00055616,85117.0,85116.0,0.23497344]
[1744913178202,0.00055616,85117.0,85115.0,0.2349762]
[1744913178365,0.23499277,85109.0,85108.0,0.001]
[1744913178582,0.28389277,85109.0,85108.0,0.001]
[1744913179150,0.28389277,85109.0,85108.0,0.01326823]
[1744913180018,0.33279277,85109.0,85108.0,0.01326823]
[1744913180239,0.33279277,85109.0,85108.0,0.00426823]
[1744913180240,0.45224068,85109.0,85108.0,0.00426823]
[1744913180398,0.45224068,85109.0,85088.0,0.01175253]
[1744913180399,0.23501667,85101.0,85099.0,0.44354651]
[1744913180599,0.01174991,85107.0,85094.0,0.34]
[1744913180805,0.01174991,85107.0,85103.0,0.23500901]
[1744913181009,0.24674586,85108.0,85103.0,0.23500901]
[1744913181212,0.24674832,85107.0,85104.0,0.0102217]
[1744913181417,0.23500381,85105.0,85104.0,0.0102217]
[1744913181823,0.2467584,85104.0,85101.0,0.23501486]
[1744913182022,0.0117506,85102.0,85098.0,0.23502295]
[1744913182410,0.24676489,85102.0,85099.0,0.2350201]
[1744913182593,0.01175074,85101.0,85099.0,0.2350201]
[1744913183417,0.01175088,85100.0,85096.0,0.34]
[1744913183771,0.24676798,85101.0,85098.0,0.23502211]
[1744913184309,0.2467584,85104.0,85098.0,0.01175115]
[1744913184437,0.01175046,85103.0,85099.0,0.23501836]
[1744913184642,0.24676011,85103.0,85100.0,0.23501652]
[1744913185278,0.24676063,85103.0,85100.0,0.23501652]
[1744913185790,0.24676063,85103.0,85098.0,0.23502228]
[1744913185791,0.01175074,85101.0,85099.0,0.2350203]
[1744913186082,0.24676578,85101.0,85098.0,0.23502228]
[1744913186298,0.24676578,85101.0,85099.0,0.23502]
[1744913186453,0.24676578,85101.0,85098.0,0.23502228]
[1744913188529,0.01175157,85095.0,85094.0,0.34]
[1744913188691,0.01175129,85097.0,85094.0,0.34]
[1744913189015,0.24677736,85097.0,85094.0,0.34]
[1744913189319,0.01175129,85097.0,85094.0,0.34]
[1744913189460,0.24677874,85097.0,85094.0,0.57503347]
[1744913189860,0.23504598,85090.0,85088.0,0.01907547]
[1744913190063,0.23508945,85074.0,85073.0,0.0008426]
[1744913190327,0.23511985,85063.0,85062.0,0.4085278]
[1744913190490,0.23511985,85063.0,85062.0,0.43817611]
[1744913190688,0.24687004,85065.0,85062.0,0.43817611]
[1744913190890,0.24686281,85068.0,85063.0,0.23511977]
[1744913191095,0.24686438,85067.0,85064.0,0.35038399]
[1744913191430,0.23511187,85066.0,85064.0,0.35038399]
[1744913191634,0.24686438,85067.0,85064.0,0.35038399]
[1744913191934,0.23511203,85066.0,85064.0,0.35038399]
[1744913192732,0.24686519,85067.0,85064.0,0.35038399]
[1744913193137,0.23511203,85066.0,85064.0,0.35038399]
[1744913193331,0.23509311,85073.0,85068.0,0.0117553]
[1744913193669,0.01175405,85077.0,85072.0,0.23509323]
[1744913193850,0.24683868,85076.0,85073.0,0.23509068]
[1744913194028,0.23508791,85075.0,85073.0,0.01038826]
[1744913194246,0.23508791,85075.0,85070.0,0.23509967]
[1744913194247,0.24684392,85074.0,85071.0,0.57509684]
[1744913194437,0.23509244,85073.0,85072.0,0.01038643]
[1744913195108,0.24684454,85074.0,85072.0,0.01038643]
[1744913198246,0.23509221,85073.0,85072.0,0.01038643]
[1744913198642,0.24684227,85075.0,85072.0,0.24548131]
[1744913198796,0.24684227,85075.0,85072.0,0.01038643]
[1744913199350,0.2350896,85074.0,85072.0,0.01038643]
[1744913199653,0.24684227,85075.0,85072.0,0.01038643]
[1744913199829,0.23509059,85074.0,85072.0,0.01038643]
[1744913200267,0.2958276,85080.0,85073.0,0.01038643]
[1744913200599,0.14228,85095.0,85083.0,0.01175322]
[1744913200600,0.0609517,85094.0,85083.0,0.01175322]
[1744913200895,0.01175226,85090.0,85086.0,0.23505629]
[1744913201102,0.01175267,85087.0,85085.0,0.34]
[1744913201316,0.24680406,85088.0,85085.0,0.34]
[1744913201894,0.23505423,85087.0,85085.0,0.34]
[1744913202258,0.24680637,85087.0,85085.0,0.34]
[1744913202569,0.24680406,85088.0,85085.0,0.34]
[1744913202972,0.28235629,85086.0,85085.0,0.34]
[1744913203176,0.23507287,85080.0,85079.0,0.34]
[1744913203850,0.23506156,85085.0,85079.0,0.34]
[1744913204049,0.01175322,85083.0,85079.0,0.34]
[1744913204273,0.01175336,85082.0,85079.0,0.34]
[1744913204478,0.24681626,85084.0,85081.0,0.34]
[1744913204818,0.23505925,85085.0,85082.0,0.23506713]
[1744913205171,0.23505925,85085.0,85081.0,0.34]
[1744913205172,0.2468122,85085.0,85081.0,0.57506971]
[1744913205343,0.01175309,85084.0,85081.0,0.34]
[1744913205542,0.0117535,85081.0,85079.0,0.34]
[1744913205895,0.23506517,85083.0,85081.0,0.34]
[1744913206468,0.23506734,85082.0,85081.0,0.34]
[1744913206869,0.2468142,85085.0,85080.0,0.34]
[1744913207072,0.01175281,85086.0,85082.0,0.23506593]
[1744913207291,0.24681739,85084.0,85080.0,0.57506462]
[1744913207508,0.01175309,85084.0,85081.0,0.23506905]
[1744913207717,0.24681541,85084.0,85081.0,0.23506905]
[1744913207915,0.24681416,85085.0,85081.0,0.23506905]
[1744913208148,0.01175226,85090.0,85084.0,0.23505629]
[1744913208429,0.14216,85097.0,85090.0,0.01175226]
[1744913208579,0.01175198,85092.0,85089.0,0.23504536]
[1744913209155,0.0117517,85094.0,85091.0,0.2350402]
[1744913209272,0.0117517,85094.0,85092.0,0.2456175]
[1744913209476,0.01175143,85096.0,85093.0,0.23503695]
[1744913209771,0.01175143,85096.0,85094.0,0.01055366]
[1744913210027,0.24678078,85096.0,85094.0,0.01055366]
[1744913210236,0.23503143,85095.0,85094.0,0.01055366]
[1744913210536,0.24678078,85096.0,85090.0,0.23504514]
[1744913210537,0.24678078,85096.0,85093.0,0.23503447]
[1744913210764,0.01175129,85097.0,85092.0,0.01175198]
[1744913210879,0.2467777,85097.0,85095.0,0.23503143]
[1744913211085,0.05965046,85103.0,85096.0,0.01055366]
[1744913211086,0.0117506,85102.0,85096.0,0.01055366]
[1744913211350,0.24676897,85100.0,85096.0,0.23502846]
[1744913211524,0.01175101,85099.0,85097.0,0.01055366]
[1744913211726,0.24677454,85098.0,85095.0,0.23503041]
[1744913211932,0.24677454,85098.0,85096.0,0.01055366]
[1744913212086,0.01175088,85100.0,85097.0,0.23502591]
[1744913212307,0.24677359,85099.0,85098.0,0.01055488]
[1744913213508,0.23503695,85093.0,85092.0,0.34]
[1744913213872,0.23503695,85093.0,85092.0,0.36946044]
[1744913214230,0.23503695,85093.0,85092.0,0.02946044]
[1744913217444,0.24678321,85095.0,85092.0,0.02946044]
[1744913217654,0.23503676,85094.0,85092.0,0.02946044]
[1744913217998,0.24678846,85094.0,85090.0,0.00869254]
[1744913218202,0.2467946,85091.0,85089.0,0.0193332]
[1744913218407,0.2467931,85092.0,85089.0,0.23504541]
[1744913219081,0.24678822,85094.0,85090.0,0.23504401]
[1744913219274,0.24678949,85093.0,85090.0,0.23504401]
[1744913219502,0.01175198,85092.0,85089.0,0.01936004]
[1744913219705,0.01175198,85092.0,85090.0,0.23504458]
[1744913219854,0.01175198,85092.0,85089.0,0.01936004]
[1744913219855,0.0117524,85089.0,85088.0,0.00890043]
[1744913220059,0.0117524,85089.0,85066.0,0.01364051]
[1744913220060,0.01175516,85069.0,85066.0,0.01364051]
[1744913220264,0.01175474,85072.0,85061.0,0.0478]
[1744913220265,0.01175488,85071.0,85063.0,0.24687452]
[1744913220505,0.0493,85073.0,85068.0,0.0117553]
[1744913220786,0.23510427,85069.0,85066.0,0.24686675]
[1744913221382,0.23510427,85069.0,85067.0,0.57510819]
[1744913221777,0.23510603,85068.0,85067.0,0.34]
[1744913221987,0.23510427,85069.0,85067.0,0.34]
[1744913222299,0.2468402,85076.0,85072.0,0.01175474]
[1744913222469,0.2468402,85076.0,85070.0,0.34]
[1744913222470,0.23509519,85072.0,85070.0,0.34]
[1744913222654,0.01175461,85073.0,85070.0,0.34]
[1744913222849,0.23509774,85071.0,85070.0,0.34]
[1744913223195,0.23509518,85072.0,85070.0,0.34]
[1744913223410,0.2351005,85070.0,85069.0,0.34]
[1744913224308,0.24685316,85071.0,85069.0,0.34]
[1744913224507,0.01175488,85071.0,85069.0,0.34]
[1744913224654,0.24685326,85071.0,85069.0,0.34]
[1744913225128,0.01175488,85071.0,85069.0,0.57510294]
[1744913225271,0.24685314,85071.0,85069.0,0.34]
[1744913225465,0.24685314,85071.0,85070.0,0.00875704]
[1744913226495,0.24685772,85070.0,85067.0,0.35175543]
[1744913226670,0.24685772,85070.0,85068.0,0.00883239]
[1744913227060,0.01175461,85073.0,85070.0,0.01175502]
[1744913227261,0.24685247,85072.0,85071.0,0.00883422]
[1744913227564,0.2351005,85070.0,85069.0,0.34]
[1744913227945,0.2351005,85070.0,85069.0,0.348833]
[1744913228365,0.2351005,85070.0,85069.0,0.008833]
[1744913228535,0.2351005,85070.0,85067.0,0.58686394]
[1744913228736,0.23510326,85069.0,85068.0,0.00883239]
[1744913228939,0.2351005,85070.0,85068.0,0.00883239]
[1744913229148,0.28310326,85069.0,85068.0,0.00883239]
[1744913229373,0.33070326,85069.0,85068.0,0.00883239]
[1744913229569,0.23510879,85067.0,85066.0,0.02739963]
[1744913229946,0.23512261,85062.0,85059.0,0.44787627]
[1744913230154,0.23512261,85062.0,85061.0,0.02294877]
[1744913230356,0.23512261,85062.0,85061.0,0.36294877]
[1744913230676,0.23512054,85063.0,85061.0,0.36294877]
[1744913230904,0.10735516,85069.0,85061.0,0.36294877]
[1744913231105,0.01175474,85072.0,85066.0,0.01175557]
[1744913231281,0.23510603,85068.0,85067.0,0.34]
[1744913231500,0.23510603,85068.0,85067.0,0.34741796]
[1744913232655,0.23510603,85068.0,85067.0,0.00741796]
[1744913232865,0.001,85070.0,85067.0,0.01917339]
[1744913233472,0.001,85070.0,85068.0,0.23510356]
[1744913233671,0.001,85070.0,85067.0,0.01917339]
[1744913233969,0.001,85070.0,85068.0,0.00740928]
[1744913234299,0.236103,85070.0,85068.0,0.00740928]
[1744913234708,0.23510326,85069.0,85068.0,0.00740928]
[1744913234910,0.23510879,85067.0,85066.0,0.02371176]
[1744913235091,0.23510611,85068.0,85066.0,0.00740806]
[1744913235293,0.23510611,85068.0,85066.0,0.02398497]
[1744913235535,0.23510611,85068.0,85067.0,0.00740806]
[1744913235690,0.23510611,85068.0,85065.0,0.24686968]
[1744913235889,0.23510611,85068.0,85066.0,0.00743921]
[1744913236110,0.001,85070.0,85068.0,0.23510355]
[1744913236336,0.001,85070.0,85069.0,0.00744043]
[1744913236747,0.001,85070.0,85069.0,0.58254369]
[1744913236958,0.001,85070.0,85069.0,0.7029916]
[1744913238349,0.048,85092.0,85088.0,0.57505077]
[1744913238556,0.048,85100.0,85099.0,0.23502038]
[1744913238755,0.24676197,85103.0,85099.0,0.00738899]
[1744913238955,0.24675658,85105.0,85101.0,0.23501486]
[1744913239178,0.24675658,85105.0,85102.0,0.24237532]
[1744913239475,0.24717808,85105.0,85102.0,0.24237532]
[1744913239672,0.24717808,85105.0,85102.0,0.00736346]
[1744913239875,0.24762722,85105.0,85102.0,0.24237467]
[1744913240173,0.23500659,85104.0,85102.0,0.00736346]
[1744913240417,0.23500659,85104.0,85100.0,0.24676655]
[1744913240603,0.00087064,85105.0,85103.0,0.00736224]
[1744913240739,0.00087064,85105.0,85103.0,0.23500774]
[1744913240943,0.00087064,85105.0,85104.0,0.00736346]
[1744913241355,0.01262083,85105.0,85102.0,0.0117506]
[1744913241565,0.00087064,85105.0,85103.0,0.2423728]
[1744913241771,0.00087064,85105.0,85104.0,0.23500658]
[1744913242107,0.00087064,85105.0,85104.0,0.58229493]
[1744913245470,0.00087064,85105.0,85104.0,0.70174284]
[1744913246621,0.00087064,85105.0,85104.0,0.58229493]
[1744913248748,0.00087064,85105.0,85104.0,0.34728835]
[1744913248952,0.00087064,85105.0,85104.0,0.58229493]
[1744913249993,0.09567064,85105.0,85104.0,0.00728835]
[1744913250198,0.09567064,85105.0,85103.0,0.34]
[1744913250421,0.09567064,85105.0,85104.0,0.23500658]
[1744913250622,0.09567064,85105.0,85104.0,0.00709172]
[1744913250826,0.09567064,85105.0,85104.0,0.2420983]
[1744913251370,0.09567064,85105.0,85104.0,0.00709172]
[1744913252789,0.04757064,85105.0,85104.0,0.5820983]
[1744913252998,0.00087064,85105.0,85104.0,0.5820983]
[1744913267360,0.00087064,85105.0,85104.0,0.40582118]
[1744913268291,0.00087064,85105.0,85104.0,0.40682118]
[1744913269834,0.23587445,85105.0,85104.0,0.0069132]
[1744913270218,0.00087064,85105.0,85104.0,0.0069132]
[1744913270385,0.23587445,85105.0,85104.0,0.0069132]
[1744913271296,0.23587445,85105.0,85104.0,0.3469132]
[1744913272154,0.00087064,85105.0,85104.0,0.3469132]
[1744913272649,0.00087064,85105.0,85104.0,0.58191978]
[1744913272857,0.00087064,85105.0,85104.0,0.3469132]
[1744913274029,0.00087064,85105.0,85104.0,0.58191978]
[1744913276101,0.00087064,85105.0,85104.0,0.70136769]
[1744913280999,0.00087064,85105.0,85104.0,0.71690854]
[1744913281170,0.00087064,85105.0,85104.0,0.80910854]
[1744913282574,0.00087064,85105.0,85104.0,1.22110854]
[1744913283194,0.0004214,85122.0,85116.0,0.62097344]
[1744913283398,0.001157,85129.0,85128.0,0.57494032]
[1744913283583,0.00129169,85129.0,85128.0,0.34580404]
[1744913284003,0.23493253,85131.0,85129.0,0.34]
[1744913284204,0.23493253,85131.0,85130.0,0.00580465]
[1744913284406,0.2349348,85130.0,85128.0,0.0236001]
[1744913284579,0.29288443,85129.0,85126.0,0.34]
[1744913284779,0.23494204,85128.0,85127.0,0.00580373]
[1744913284986,0.23494032,85128.0,85127.0,0.00580373]
[1744913285206,0.28024032,85128.0,85127.0,0.00580373]
[1744913286017,0.23494308,85127.0,85126.0,0.02390426]
[1744913286174,0.24670899,85121.0,85118.0,0.34]
[1744913286381,0.24670899,85121.0,85119.0,0.00580464]
[1744913286892,0.2349624,85120.0,85119.0,0.00580464]
[1744913287324,0.23495675,85123.0,85119.0,0.0299963]
[1744913287496,0.23495754,85122.0,85120.0,0.34]
[1744913287899,0.01174729,85126.0,85123.0,0.23495349]
[1744913288102,0.01174715,85127.0,85124.0,0.00578569]
[1744913288318,0.0462,85129.0,85124.0,0.00578569]
[1744913288636,0.05704701,85128.0,85126.0,0.2349451]
[1744913289041,0.29198775,85128.0,85127.0,0.00578691]
[1744913289404,0.29198775,85128.0,85123.0,0.2349515]
[1744913289405,0.01174729,85126.0,85123.0,0.2349515]
[1744913289767,0.01174729,85126.0,85124.0,0.24071769]
[1744913290829,0.28113803,85129.0,85127.0,0.23494308]
[1744913290830,0.0462,85129.0,85127.0,0.23494308]
[1744913291030,0.001,85131.0,85128.0,0.00576437]
[1744913291229,0.23493756,85129.0,85128.0,0.00576437]
[1744913291632,0.01174687,85129.0,85126.0,0.23494581]
[1744913291851,0.24668593,85129.0,85127.0,0.00576437]
[1744913292049,0.24668154,85130.0,85128.0,0.23494032]
[1744913292584,0.24668154,85130.0,85129.0,0.00576498]
[1744913292931,0.24668849,85128.0,85125.0,0.23494794]
[1744913293125,0.24668849,85128.0,85123.0,0.24359344]
[1744913293126,0.24669366,85126.0,85124.0,0.57495123]